fUST/lending_fUST_20250102
["ID","MTS","AMOUNT","RATE_DAILY","PERIOD"]
[347449198,1735824655198,-500.0,0.0002,3]
[347449199,1735824655207,-500.0,0.0002,3]
[347449200,1735824655217,-527.09,0.0002,3]
[347449201,1735824655227,-500.0,0.0002,3]
[347449202,1735824655236,-500.0,0.0002,3]
[347449203,1735824655246,-816.02,0.0002,2]
[347449204,1735824655255,-500.0,0.0002,3]
[347449205,1735824655265,-500.0,0.0002,3]
[347449206,1735824655275,-500.0,0.0002,3]
[347449207,1735824655284,-500.0,0.0002,3]
[347449208,1735824655294,-500.0,0.0002,3]
[347449209,1735824655303,-500.0,0.0002,3]
[347449210,1735824655312,-500.0,0.0002,3]
[347449211,1735824655322,-500.0,0.0002,3]
[347449212,1735824655331,-500.0,0.0002,3]
[347449213,1735824655340,-500.0,0.0002,3]
[347449214,1735824655351,-1413.83,0.0002,3]
[347449215,1735824655360,-500.0,0.0002,3]
[347449216,1735824655369,-500.0,0.0002,3]
[347449217,1735824655378,-500.0,0.0002,3]
[347449218,1735824655388,-500.0,0.0002,3]
[347449219,1735824655397,-500.0,0.0002,3]
[347449220,1735824655406,-1307.8,0.0002,3]
[347449221,1735824655416,-684.33,0.0002,3]
[347449222,1735824655425,-3959.23,0.0002,3]
[347449223,1735824655435,-963.44,0.0002,3]
[347449224,1735824655444,-654.39,0.0002,3]
[347449225,1735824655454,-500.0,0.0002,3]
[347449226,1735824655463,-500.0,0.0002,3]
[347449227,1735824655473,-500.0,0.0002,3]
[347449228,1735824655482,-500.0,0.0002,3]
[347449229,1735824655491,-500.0,0.0002,3]
[347449230,1735824655501,-543.7,0.0002,3]
[347449231,1735824655510,-500.0,0.0002,3]
[347449232,1735824655520,-500.0,0.0002,3]
[347449233,1735824655529,-500.0,0.0002,3]
[347449234,1735824655538,-500.0,0.0002,3]
[347449235,1735824655548,-500.0,0.0002,3]
[347449236,1735824655558,-500.0,0.0002,3]
[347449237,1735824655567,-507.55141132,0.0002,3]
[347449238,1735824655577,-500.0,0.0002,3]
[347449239,1735824655586,-154.9179794,0.00020058,2]
[347449240,1735824655597,-151.0,0.000201,3]
[347449241,1735824655607,-151.0,0.000201,4]
[347449242,1735824655617,-151.0,0.000202,3]
[347449243,1735824655626,-151.0,0.000202,4]
[347449244,1735824655636,-154.9179794,0.00020216,2]
[347449245,1735824655646,-1187.06338029,0.00020222,2]
[347449246,1735824655656,-170.76746889,0.00020272,2]
[347449247,1735824655666,-193.88898286,0.00020273,3]
[347449248,1735824655676,-562.13224718,0.00020273,3]
[347449249,1735824655686,-500.0,0.00020273,3]
[347449250,1735824655696,-500.0,0.00020273,3]
[347449251,1735824655705,-500.0,0.00020273,3]
[347449252,1735824655795,-500.0,0.00020273,3]
[347449253,1735824655804,-500.0,0.00020273,3]
[347449254,1735824655814,-500.0,0.00020273,3]
[347449255,1735824655823,-500.0,0.00020273,3]
[347449256,1735824655833,-500.0,0.00020273,3]
[347449257,1735824655843,-500.0,0.00020273,3]
[347449258,1735824655854,-500.0,0.00020273,3]
[347449259,1735824655863,-500.0,0.00020273,3]
[347449260,1735824655872,-409.99936066,0.00020273,3]
[347449261,1735824655881,-500.0,0.00020273,3]
[347449262,1735824655890,-500.0,0.00020273,3]
[347449263,1735824655900,-576.49407865,0.00020273,3]
[347449264,1735824655910,-500.0,0.00020273,3]
[347449265,1735824655919,-500.0,0.00020273,3]
[347449266,1735824655928,-500.0,0.00020273,3]
[347449267,1735824655938,-500.0,0.00020273,3]
[347449268,1735824655947,-500.0,0.00020273,3]
[347449269,1735824655956,-500.0,0.00020273,3]
[347449270,1735824655966,-500.0,0.00020273,3]
[347449271,1735824655976,-559.46,0.00020273,3]
[347449272,1735824655985,-500.0,0.00020273,3]
[347449273,1735824655994,-500.0,0.00020273,3]
[347449274,1735824656003,-500.0,0.00020273,3]
[347449275,1735824656013,-500.0,0.00020273,3]
[347449276,1735824656022,-500.0,0.00020273,3]
[347449277,1735824656032,-500.0,0.00020273,2]
[347449278,1735824656041,-500.0,0.00020273,3]
[347449279,1735824656051,-500.0,0.00020273,3]
[347449280,1735824656060,-500.0,0.00020273,3]
[347449281,1735824656074,-3397.6,0.00020273,3]
[347449282,1735824656083,-500.0,0.00020273,3]
[347449283,1735824656094,-500.0,0.00020273,3]
[347449284,1735824656104,-500.0,0.00020273,3]
[347449285,1735824656115,-500.0,0.00020273,3]
[347449286,1735824656124,-500.0,0.00020273,3]
[347449287,1735824656134,-500.0,0.00020273,3]
[347449288,1735824656143,-500.0,0.00020273,3]
[347449289,1735824656153,-500.0,0.00020273,3]
[347449290,1735824656163,-500.0,0.00020273,3]
[347449291,1735824656173,-500.0,0.00020273,3]
[347449292,1735824656182,-500.0,0.00020273,3]
[347449293,1735824656191,-500.0,0.00020273,3]
[347449294,1735824656201,-500.0,0.00020273,3]
[347449295,1735824656210,-500.0,0.00020273,3]
[347449296,1735824656221,-500.0,0.00020273,3]
[347449297,1735824656231,-500.0,0.00020273,3]
[347449298,1735824656241,-500.0,0.00020273,3]
[347449299,1735824656251,-500.0,0.00020273,3]
[347449300,1735824656262,-500.0,0.00020273,3]
[347449301,1735824656272,-1643.63,0.00020273,3]
[347449302,1735824656282,-511.53,0.00020273,3]
[347449303,1735824656291,-500.0,0.00020273,3]
[347449304,1735824656301,-500.0,0.00020273,3]
[347449305,1735824656311,-500.0,0.00020273,3]
[347449306,1735824656320,-500.0,0.00020273,3]
[347449307,1735824656329,-1226.33,0.00020273,3]
[347449308,1735824656339,-500.0,0.00020273,3]
[347449309,1735824656349,-500.0,0.00020273,3]
[347449310,1735824656358,-16077.87,0.00020273,3]
[347449311,1735824656368,-500.0,0.00020273,3]
[347449312,1735824656377,-500.0,0.00020273,3]
[347449313,1735824656386,-500.0,0.00020273,3]
[347449314,1735824656395,-500.0,0.00020273,3]
[347449315,1735824656405,-500.0,0.00020273,3]
[347449316,1735824656415,-500.0,0.00020273,3]
[347449317,1735824656424,-695.31,0.00020273,3]
[347449318,1735824656434,-500.0,0.00020273,3]
[347449319,1735824656443,-500.0,0.00020273,3]
[347449320,1735824656454,-842.03,0.00020273,3]
[347449321,1735824656463,-500.0,0.00020273,3]
[347449322,1735824656472,-500.0,0.00020273,3]
[347449323,1735824656482,-500.0,0.00020273,3]
[347449324,1735824656491,-604.44,0.00020273,3]
[347449325,1735824656501,-500.0,0.00020273,3]
[347449326,1735824656510,-3259.91,0.00020273,3]
[347449327,1735824656520,-1069.98,0.00020273,3]
[347449328,1735824656532,-1851.28,0.00020273,3]
[347449329,1735824656544,-500.0,0.00020273,3]
[347449330,1735824656555,-500.0,0.00020273,3]
[347449331,1735824656567,-2079.85,0.00020273,3]
[347449332,1735824656576,-500.0,0.00020273,3]
[347449333,1735824656586,-500.0,0.00020273,3]
[347449334,1735824656596,-500.0,0.00020273,3]
[347449335,1735824656605,-500.0,0.00020273,3]
[347449336,1735824656615,-500.0,0.00020273,3]
[347449337,1735824656625,-527.09,0.00020273,3]
[347449338,1735824656636,-500.0,0.00020273,3]
[347449339,1735824656645,-816.02,0.00020273,2]
[347449340,1735824656655,-500.0,0.00020273,3]
[347449341,1735824656665,-521.62,0.00020273,3]
[347449342,1735824656675,-500.0,0.00020273,3]
[347449343,1735824656684,-500.0,0.00020273,3]
[347449344,1735824656693,-500.0,0.00020273,3]
[347449345,1735824656703,-500.0,0.00020273,3]
[347449346,1735824656712,-500.0,0.00020273,3]
[347449347,1735824656721,-500.0,0.00020273,3]
[347449348,1735824656730,-500.0,0.00020273,3]
[347449349,1735824656739,-500.0,0.00020273,3]
[347449350,1735824656749,-1413.83,0.00020273,3]
[347449351,1735824656758,-500.0,0.00020273,3]
[347449352,1735824656768,-499.0,0.00020273,2]
[347449353,1735824656778,-570.43,0.00020273,3]
[347449354,1735824656787,-506.89326545,0.00020273,3]
[347449355,1735824656797,-500.0,0.00020273,3]
[347449356,1735824656806,-500.0,0.00020273,3]
[347449357,1735824656816,-1307.8,0.00020273,3]
[347449358,1735824656825,-684.33,0.00020273,3]
[347449359,1735824656834,-3959.23,0.00020273,3]
[347449360,1735824656844,-963.44,0.00020273,3]
[347449361,1735824656854,-654.39,0.00020273,3]
[347449362,1735824656864,-500.0,0.00020273,3]
[347449363,1735824656874,-500.0,0.00020273,3]
[347449364,1735824656884,-500.0,0.00020273,3]
[347449365,1735824656894,-543.7,0.00020273,3]
[347449366,1735824656903,-500.0,0.00020273,3]
[347449367,1735824656913,-500.0,0.00020273,3]
[347449368,1735824656923,-500.0,0.00020273,3]
[347449369,1735824656932,-500.0,0.00020273,3]
[347449370,1735824656941,-500.0,0.00020273,3]
[347449371,1735824656951,-500.0,0.00020273,3]
[347449372,1735824656960,-500.0,0.00020273,3]
[347449373,1735824656970,-1250.19875873,0.00020303,2]
[347449374,1735824656979,-154.9179794,0.00020374,2]
[347449375,1735824656989,-177.580984,0.00020521,2]
[347449376,1735824656998,-154.9179794,0.00020532,2]
[347449377,1735824657008,-500.0,0.00020547,3]
[347449378,1735824657017,-500.0,0.00020547,3]
[347449379,1735824657027,-500.0,0.00020547,3]
[347449380,1735824657037,-500.0,0.00020547,3]
[347449381,1735824657046,-500.0,0.00020547,3]
[347449382,1735824657056,-538.2,0.00020547,3]
[347449383,1735824657069,-500.0,0.00020547,3]
[347449384,1735824657079,-500.0,0.00020547,3]
[347449385,1735824657088,-500.0,0.00020547,3]
[347449386,1735824657098,-500.0,0.00020547,3]
[347449387,1735824657107,-500.0,0.00020547,3]
[347449388,1735824657117,-500.0,0.00020547,3]
[347449389,1735824657126,-500.0,0.00020547,3]
[347449390,1735824657135,-559.46,0.00020547,3]
[347449391,1735824657144,-500.0,0.00020547,3]
[347449392,1735824657153,-500.0,0.00020547,3]
[347449393,1735824657162,-500.0,0.00020547,3]
[347449394,1735824657172,-500.0,0.00020547,3]
[347449395,1735824657181,-500.0,0.00020547,2]
[347449396,1735824657190,-500.0,0.00020547,3]
[347449397,1735824657199,-500.0,0.00020547,3]
[347449398,1735824657208,-500.0,0.00020547,3]
[347449399,1735824657218,-3397.6,0.00020547,3]
[347449400,1735824657227,-500.0,0.00020547,3]
[347449401,1735824657236,-500.0,0.00020547,3]
[347449402,1735824657245,-500.0,0.00020547,3]
[347449403,1735824657254,-500.0,0.00020547,3]
[347449404,1735824657264,-500.0,0.00020547,3]
[347449405,1735824657273,-500.0,0.00020547,3]
[347449406,1735824657282,-500.0,0.00020547,3]
[347449407,1735824657291,-500.0,0.00020547,3]
[347449408,1735824657300,-500.0,0.00020547,3]
[347449409,1735824657309,-500.0,0.00020547,3]
[347449410,1735824657394,-500.0,0.00020547,3]
[347449411,1735824657404,-500.0,0.00020547,3]
[347449412,1735824657413,-500.0,0.00020547,3]
[347449413,1735824657422,-500.0,0.00020547,3]
[347449414,1735824657431,-500.0,0.00020547,3]
[347449415,1735824657441,-500.0,0.00020547,3]
[347449416,1735824657451,-500.0,0.00020547,3]
[347449417,1735824657460,-1643.63,0.00020547,3]
[347449418,1735824657470,-511.53,0.00020547,3]
[347449419,1735824657479,-500.0,0.00020547,3]
[347449420,1735824657488,-500.0,0.00020547,3]
[347449421,1735824657498,-500.0,0.00020547,3]
[347449422,1735824657508,-500.0,0.00020547,3]
[347449423,1735824657517,-1226.33,0.00020547,3]
[347449424,1735824657527,-500.0,0.00020547,3]
[347449425,1735824657536,-500.0,0.00020547,3]
[347449426,1735824657546,-16077.87,0.00020547,3]
[347449427,1735824657555,-500.0,0.00020547,3]
[347449428,1735824657564,-500.0,0.00020547,3]
[347449429,1735824657573,-300.42338666,0.00020547,3]
[347449430,1735824657583,-500.0,0.00020547,3]
[347449431,1735824657592,-445.59484313,0.00020547,3]
[347449432,1735824657601,-500.0,0.00020547,3]
[347449433,1735824657610,-695.31,0.00020547,3]
[347449434,1735824657619,-415.25873155,0.00020547,3]
[347449435,1735824657629,-500.0,0.00020547,3]
[347449436,1735824657638,-842.03,0.00020547,3]
[347449437,1735824657647,-500.0,0.00020547,3]
[347449438,1735824657656,-500.0,0.00020547,3]
[347449439,1735824657665,-500.0,0.00020547,3]
[347449440,1735824657675,-604.44,0.00020547,3]
[347449441,1735824657684,-500.0,0.00020547,3]
[347449442,1735824657693,-3259.91,0.00020547,3]
[347449443,1735824657703,-1069.98,0.00020547,3]
[347449444,1735824657713,-1851.28,0.00020547,3]
[347449445,1735824657722,-500.0,0.00020547,3]
[347449446,1735824657731,-500.0,0.00020547,3]
[347449447,1735824657740,-2079.85,0.00020547,3]
[347449448,1735824657750,-500.0,0.00020547,3]
[347449449,1735824657759,-500.0,0.00020547,3]
[347449450,1735824657768,-196.88,0.00020547,3]
[347449451,1735824657777,-500.0,0.00020547,3]
[347449452,1735824657787,-527.09,0.00020547,3]
[347449453,1735824657796,-436.33193994,0.00020547,3]
[347449454,1735824657805,-816.02,0.00020547,2]
[347449455,1735824657814,-500.0,0.00020547,3]
[347449456,1735824657824,-500.0,0.00020547,3]
[347449457,1735824657833,-500.0,0.00020547,3]
[347449458,1735824657842,-500.0,0.00020547,3]
[347449459,1735824657851,-500.0,0.00020547,3]
[347449460,1735824657860,-500.0,0.00020547,3]
[347449461,1735824657870,-500.0,0.00020547,3]
[347449462,1735824657879,-513.3,0.00020547,3]
[347449463,1735824657888,-500.0,0.00020547,3]
[347449464,1735824657897,-1413.83,0.00020547,3]
[347449465,1735824657907,-500.0,0.00020547,3]
[347449466,1735824657918,-500.0,0.00020547,3]
[347449467,1735824657927,-1307.8,0.00020547,3]
[347449468,1735824657937,-684.33,0.00020547,3]
[347449469,1735824657947,-3959.23,0.00020547,3]
[347449470,1735824657956,-963.44,0.00020547,3]
[347449471,1735824657965,-654.39,0.00020547,3]
[347449472,1735824657975,-500.0,0.00020547,3]
[347449473,1735824657984,-500.0,0.00020547,3]
[347449474,1735824657994,-500.0,0.00020547,3]
[347449475,1735824658003,-543.7,0.00020547,3]
[347449476,1735824658012,-500.0,0.00020547,3]
[347449477,1735824658022,-500.0,0.00020547,3]
[347449478,1735824658031,-500.0,0.00020547,3]
[347449479,1735824658040,-500.0,0.00020547,3]
[347449480,1735824658049,-500.0,0.00020547,3]
[347449481,1735824658059,-500.0,0.00020547,3]
[347449482,1735824658072,-157.14584329,0.0002055,7]
[347449483,1735824658081,-157.14584329,0.0002055,7]
[347449484,1735824658092,-157.14584329,0.0002055,7]
[347449485,1735824658101,-157.14584329,0.0002055,7]
[347449486,1735824658112,-157.14584329,0.0002055,7]
[347449487,1735824658121,-157.14584329,0.0002055,7]
[347449488,1735824658131,-157.14584329,0.0002055,7]
[347449489,1735824658141,-157.14,0.0002055,7]
[347449490,1735824658151,-194.53,0.0002055,7]
[347449491,1735824658160,-1018.13509955,0.00020566,2]
[347449492,1735824658170,-703.8182162,0.0002063,2]
[347449493,1735824658180,-420.0,0.00020677,2]
[347449494,1735824658189,-154.9179794,0.00020689,2]
[347449495,1735824658198,-951.92511255,0.00020786,2]
[347449496,1735824658208,-375.0,0.000208,9]
[347449497,1735824658218,-500.0,0.00020821,3]
[347449498,1735824658227,-613.19766353,0.00020821,3]
[347449499,1735824658237,-500.0,0.00020821,3]
[347449500,1735824658247,-500.0,0.00020821,3]
[347449501,1735824658258,-500.0,0.00020821,3]
[347449502,1735824658267,-500.0,0.00020821,3]
[347449503,1735824658276,-500.0,0.00020821,3]
[347449504,1735824658286,-500.0,0.00020821,3]
[347449505,1735824658295,-500.0,0.00020821,3]
[347449506,1735824658304,-500.0,0.00020821,3]
[347449507,1735824658313,-500.0,0.00020821,3]
[347449508,1735824658322,-500.0,0.00020821,3]
[347449509,1735824658332,-559.46,0.00020821,3]
[347449510,1735824658342,-500.0,0.00020821,3]
[347449511,1735824658352,-500.0,0.00020821,3]
[347449512,1735824658361,-485.53696263,0.00020821,2]
[347449513,1735824658370,-500.0,0.00020821,3]
[347449514,1735824658380,-500.0,0.00020821,3]
[347449515,1735824658389,-500.0,0.00020821,3]
[347449516,1735824658397,-3397.6,0.00020821,3]
[347449517,1735824658406,-500.0,0.00020821,3]
[347449518,1735824658415,-500.0,0.00020821,3]
[347449519,1735824658424,-500.0,0.00020821,3]
[347449520,1735824658433,-587.26,0.00020821,3]
[347449521,1735824658443,-500.0,0.00020821,3]
[347449522,1735824658452,-500.0,0.00020821,3]
[347449523,1735824658461,-500.0,0.00020821,3]
[347449524,1735824658470,-500.0,0.00020821,3]
[347449525,1735824658480,-519.38,0.00020821,3]
[347449526,1735824658489,-500.0,0.00020821,3]
[347449527,1735824658498,-500.0,0.00020821,3]
[347449528,1735824658507,-500.0,0.00020821,3]
[347449529,1735824658516,-500.0,0.00020821,3]
[347449530,1735824658525,-500.0,0.00020821,3]
[347449531,1735824658535,-500.0,0.00020821,3]
[347449532,1735824658543,-500.0,0.00020821,3]
[347449533,1735824658553,-1643.63,0.00020821,3]
[347449534,1735824658562,-511.53,0.00020821,3]
[347449535,1735824658572,-500.0,0.00020821,3]
[347449536,1735824658582,-500.0,0.00020821,3]
[347449537,1735824658591,-500.0,0.00020821,3]
[347449538,1735824658602,-500.0,0.00020821,3]
[347449539,1735824658611,-1226.33,0.00020821,3]
[347449540,1735824658620,-500.0,0.00020821,3]
[347449541,1735824658630,-500.0,0.00020821,3]
[347449542,1735824658639,-16077.87,0.00020821,3]
[347449543,1735824658649,-500.0,0.00020821,3]
[347449544,1735824658659,-500.0,0.00020821,3]
[347449545,1735824658667,-500.0,0.00020821,3]
[347449546,1735824658677,-500.0,0.00020821,3]
[347449547,1735824658686,-695.31,0.00020821,3]
[347449548,1735824658695,-500.0,0.00020821,3]
[347449549,1735824658705,-309.28,0.00020821,3]
[347449550,1735824658714,-842.03,0.00020821,3]
[347449551,1735824658723,-500.0,0.00020821,3]
[347449552,1735824658732,-500.0,0.00020821,3]
[347449553,1735824658742,-604.44,0.00020821,3]
[347449554,1735824658751,-3259.91,0.00020821,3]
[347449555,1735824658761,-500.0,0.00020821,3]
[347449556,1735824658841,-1069.98,0.00020821,3]
[347449557,1735824658852,-1851.28,0.00020821,3]
[347449558,1735824658862,-500.0,0.00020821,3]
[347449559,1735824658871,-500.0,0.00020821,3]
[347449560,1735824658881,-2079.85,0.00020821,3]
[347449561,1735824658891,-228.89301308,0.00020821,3]
[347449562,1735824658900,-500.0,0.00020821,3]
[347449563,1735824658909,-500.0,0.00020821,3]
[347449564,1735824658919,-527.09,0.00020821,3]
[347449565,1735824658929,-816.02,0.00020821,2]
[347449566,1735824658938,-500.0,0.00020821,3]
[347449567,1735824658947,-500.0,0.00020821,3]
[347449568,1735824658956,-527.71,0.00020821,3]
[347449569,1735824658966,-500.0,0.00020821,3]
[347449570,1735824658975,-500.0,0.00020821,3]
[347449571,1735824658984,-500.0,0.00020821,3]
[347449572,1735824658994,-500.0,0.00020821,3]
[347449573,1735824659003,-1413.83,0.00020821,3]
[347449574,1735824659013,-182.49895331,0.00020821,3]
[347449575,1735824659023,-1307.8,0.00020821,3]
[347449576,1735824659032,-684.33,0.00020821,3]
[347449577,1735824659041,-3959.23,0.00020821,3]
[347449578,1735824659051,-963.44,0.00020821,3]
[347449579,1735824659060,-654.39,0.00020821,3]
[347449580,1735824659073,-500.0,0.00020821,3]
[347449581,1735824659082,-500.0,0.00020821,3]
[347449582,1735824659091,-500.0,0.00020821,3]
[347449583,1735824659102,-543.7,0.00020821,3]
[347449584,1735824659111,-500.0,0.00020821,3]
[347449585,1735824659121,-500.0,0.00020821,3]
[347449586,1735824659131,-500.0,0.00020821,3]
[347449587,1735824659140,-500.0,0.00020821,3]
[347449588,1735824659150,-500.0,0.00020821,3]
[347449589,1735824659159,-500.0,0.00020821,3]
[347449590,1735824659168,-151.0,0.00020844,6]
[347449591,1735824659178,-154.9179794,0.00020847,2]
[347449592,1735824659187,-638.91,0.000209,2]
[347449593,1735824659197,-217.869681,0.00020904,2]
[347449594,1735824659207,-153.0,0.00020904,2]
[347449595,1735824659216,-153.6137553,0.00020904,2]
[347449596,1735824659226,-153.0,0.00020904,2]
[347449597,1735824659235,-153.6137553,0.00020904,2]
[347449598,1735824659245,-214.4778337,0.00020904,2]
[347449599,1735824659254,-153.4284223,0.00020904,2]
[347449600,1735824659263,-214.4778337,0.00020904,2]
[347449601,1735824659273,-153.0,0.00020904,2]
[347449602,1735824659282,-214.4778337,0.00020904,2]
[347449603,1735824659291,-214.4778337,0.00020904,2]
[347449604,1735824659300,-153.0,0.00020904,2]
[347449605,1735824659309,-150.0,0.00021,2]
[347449606,1735824659319,-39895.64527427,0.00021,2]
[347449607,1735824659330,-154.9179794,0.00021005,2]
[347449608,1735824659340,-1626.59926225,0.00021095,2]
[347449609,1735824659351,-500.0,0.00021095,3]
[347449610,1735824659360,-500.0,0.00021095,3]
[347449611,1735824659369,-500.0,0.00021095,3]
[347449612,1735824659378,-500.0,0.00021095,3]
[347449613,1735824659387,-448.64,0.00021095,3]
[347449614,1735824659397,-500.0,0.00021095,3]
[347449615,1735824659407,-500.0,0.00021095,3]
[347449616,1735824659416,-500.0,0.00021095,3]
[347449617,1735824659426,-500.0,0.00021095,3]
[347449618,1735824659436,-500.0,0.00021095,3]
[347449619,1735824659446,-500.0,0.00021095,3]
[347449620,1735824659455,-559.46,0.00021095,3]
[347449621,1735824659464,-500.0,0.00021095,3]
[347449622,1735824659473,-500.0,0.00021095,3]
[347449623,1735824659482,-500.0,0.00021095,3]
[347449624,1735824659492,-500.0,0.00021095,3]
[347449625,1735824659501,-500.0,0.00021095,3]
[347449626,1735824659511,-3397.6,0.00021095,3]
[347449627,1735824659520,-500.0,0.00021095,3]
[347449628,1735824659529,-500.0,0.00021095,3]
[347449629,1735824659539,-500.0,0.00021095,3]
[347449630,1735824659549,-294.1,0.00021095,3]
[347449631,1735824659558,-500.0,0.00021095,3]
[347449632,1735824659567,-500.0,0.00021095,3]
[347449633,1735824659576,-500.0,0.00021095,3]
[347449634,1735824659585,-476.47182343,0.00021095,3]
[347449635,1735824659595,-500.0,0.00021095,3]
[347449636,1735824659606,-500.0,0.00021095,3]
[347449637,1735824659616,-500.0,0.00021095,3]
[347449638,1735824659626,-500.0,0.00021095,3]
[347449639,1735824659636,-500.0,0.00021095,3]
[347449640,1735824659646,-1643.63,0.00021095,3]
[347449641,1735824659656,-511.53,0.00021095,3]
[347449642,1735824659665,-500.0,0.00021095,3]
[347449643,1735824659674,-500.0,0.00021095,3]
[347449644,1735824659684,-543.09583281,0.00021095,3]
[347449645,1735824659693,-500.0,0.00021095,3]
[347449646,1735824659702,-1226.33,0.00021095,3]
[347449647,1735824659712,-500.0,0.00021095,3]
[347449648,1735824659721,-500.0,0.00021095,3]
[347449649,1735824659730,-16077.87,0.00021095,3]
[347449650,1735824659740,-500.0,0.00021095,3]
[347449651,1735824659749,-500.0,0.00021095,3]
[347449652,1735824659758,-500.0,0.00021095,3]
[347449653,1735824659768,-500.0,0.00021095,3]
[347449654,1735824659778,-695.31,0.00021095,3]
[347449655,1735824659787,-254.34,0.00021095,3]
[347449656,1735824659796,-842.03,0.00021095,3]
[347449657,1735824659806,-500.0,0.00021095,3]
[347449658,1735824659815,-232.79779304,0.00021095,3]
[347449659,1735824659824,-604.44,0.00021095,3]
[347449660,1735824659833,-3259.91,0.00021095,3]
[347449661,1735824659843,-500.0,0.00021095,3]
[347449662,1735824659853,-1069.98,0.00021095,3]
[347449663,1735824659863,-1851.28,0.00021095,3]
[347449664,1735824659873,-500.0,0.00021095,3]
[347449665,1735824659883,-500.0,0.00021095,3]
[347449666,1735824659892,-2079.85,0.00021095,3]
[347449667,1735824659903,-500.0,0.00021095,3]
[347449668,1735824659912,-500.0,0.00021095,3]
[347449669,1735824659922,-527.09,0.00021095,3]
[347449670,1735824659931,-816.02,0.00021095,2]
[347449671,1735824659940,-500.0,0.00021095,3]
[347449672,1735824659949,-500.0,0.00021095,3]
[347449673,1735824659959,-500.0,0.00021095,3]
[347449674,1735824659968,-500.0,0.00021095,3]
[347449675,1735824659977,-500.0,0.00021095,3]
[347449676,1735824659986,-500.0,0.00021095,3]
[347449677,1735824659995,-1413.83,0.00021095,3]
[347449678,1735824660005,-1307.8,0.00021095,3]
[347449679,1735824660014,-684.33,0.00021095,3]
[347449680,1735824660024,-3959.23,0.00021095,3]
[347449681,1735824660034,-963.44,0.00021095,3]
[347449682,1735824660044,-654.39,0.00021095,3]
[347449683,1735824660053,-500.0,0.00021095,3]
[347449684,1735824660063,-500.0,0.00021095,3]
[347449685,1735824660078,-288.89058083,0.00021095,3]
[347449686,1735824660088,-543.7,0.00021095,3]
[347449687,1735824660098,-500.0,0.00021095,3]
[347449688,1735824660107,-500.0,0.00021095,3]
[347449689,1735824660118,-500.0,0.00021095,3]
[347449690,1735824660201,-500.0,0.00021095,3]
[347449691,1735824660212,-506.47678182,0.00021095,3]
[347449692,1735824660222,-500.0,0.00021095,3]
[347449693,1735824660232,-151.0,0.00021147,6]
[347449694,1735824660241,-154.9179794,0.00021163,2]
[347449695,1735824660251,-1177.30879055,0.00021269,2]
[347449696,1735824660262,-154.9179794,0.00021321,2]
[347449697,1735824660273,-394.0,0.00021326,2]